bitfinex-derivatives/quotes_ETHF0:USTF0_20250830
["timestamp","ask_amount","ask_price","bid_price","bid_amount"]
[1756594669106,0.60067367,4359.0,4358.9,0.4924]
[1756594669906,0.89757367,4359.0,4358.9,0.4924]
[1756594674006,0.60067367,4359.0,4358.9,0.4924]
[1756594674308,0.71487367,4359.0,4358.9,0.4924]
[1756594674508,0.89757367,4359.0,4358.9,0.4924]
[1756594682817,0.89727057,4359.0,4358.9,0.4924]
[1756594694735,0.89727057,4359.0,4358.4,0.3051]
[1756594694736,0.1142,4358.9,4358.4,0.3051]
[1756594695032,3.2078,4359.3,4358.4,0.74052999]
[1756594695033,0.2969,4358.5,4358.4,0.74052999]
[1756594695331,0.2969,4358.5,4358.4,0.5111]
[1756594696734,3.2078,4359.3,4358.4,0.206]
[1756594696928,0.1142,4359.1,4358.5,0.3051]
[1756594697229,0.1827,4358.9,4358.8,0.206]
[1756594697429,0.89800583,4358.9,4358.8,0.5111]
[1756594697938,0.89799797,4358.9,4358.8,0.5111]
[1756594702340,0.89799797,4358.9,4358.2,3.2078]
[1756594702644,0.2969,4358.4,4358.3,0.5111]
[1756594703141,0.1827,4358.4,4358.3,0.5111]
[1756594703538,0.1142,4358.6,4358.3,0.206]
[1756594703740,0.1142,4359.1,4359.0,0.206]
[1756594703944,0.71526644,4359.1,4359.0,0.5111]
[1756594704240,0.89796644,4359.1,4359.0,0.5111]
[1756594704446,0.60106644,4359.1,4359.0,4.74050999]
[1756594704739,0.1142,4359.1,4359.0,0.436]
[1756594704946,0.2969,4359.1,4359.0,0.7411]
[1756594705246,3.2078,4359.7,4359.1,0.3051]
[1756594705446,0.78342887,4359.6,4359.5,0.5111]
[1756594705643,0.60072887,4359.6,4359.5,0.5111]
[1756594706041,0.89762887,4359.6,4359.5,0.5111]
[1756594707140,0.2969,4359.6,4359.5,0.5111]
[1756594711652,0.1827,4359.6,4359.5,0.5111]
[1756594711853,3.2078,4359.7,4359.6,0.3051]
[1756594712054,3.2078,4359.7,4359.6,0.5111]
[1756594713555,3.2078,4359.7,4359.6,0.7261]
[1756594714855,3.322,4359.7,4359.6,0.7261]
[1756594715355,3.5047,4359.7,4359.6,0.7261]
[1756594716356,3.2078,4359.7,4359.6,0.7261]
[1756594717057,3.2078,4360.3,4359.6,0.421]
[1756594717253,3.2078,4360.3,4359.7,0.3051]
[1756594717948,0.1143,4360.2,4359.7,0.3051]
[1756594718149,0.1143,4360.2,4360.1,0.4837]
[1756594718150,0.1828,4360.2,4360.1,0.4837]
[1756594718354,0.2971,4360.2,4360.1,0.4837]
[1756594721459,0.1828,4360.2,4360.1,0.4837]
[1756594721658,0.2971,4360.2,4360.1,0.4837]
[1756594722157,0.2971,4360.2,4359.8,0.23]
[1756594722357,0.1828,4359.9,4359.8,0.4261]
[1756594722568,0.2971,4359.9,4359.8,0.4261]
[1756594723059,0.2971,4359.9,4359.8,0.7137]
[1756594725959,0.1143,4360.7,4359.8,0.4261]
[1756594726156,0.59834956,4360.6,4359.9,0.2876]
[1756594726356,0.22934001,4360.6,4359.9,0.2876]
[1756594726550,0.1143,4360.7,4359.9,0.2876]
[1756594726761,0.1143,4360.5,4359.9,0.2876]
[1756594726963,0.1828,4360.0,4359.9,0.4837]
[1756594727151,0.2971,4360.0,4359.9,0.4837]
[1756594733564,0.2971,4360.0,4359.5,0.23]
[1756594733865,0.2971,4359.6,4359.5,0.7137]
[1756594735759,0.2971,4359.6,4359.5,0.4837]
[1756594739968,0.2971,4359.6,4359.5,0.7137]
[1756594740165,0.1143,4360.2,4359.6,0.2876]
[1756594740468,3.2078,4360.3,4360.2,0.4837]
[1756594740667,3.80770777,4360.3,4360.2,0.4837]
[1756594741364,3.2078,4360.3,4360.2,0.4837]
[1756594742468,3.3221,4360.8,4360.3,0.2876]
[1756594742665,3.3221,4360.8,4360.7,0.4837]
[1756594742869,3.80767386,4360.8,4360.7,0.4837]
[1756594743364,3.2078,4360.8,4360.7,0.4837]
[1756594745769,3.5049,4360.8,4360.7,0.4837]
[1756594749871,3.2078,4360.8,4360.7,0.4837]
[1756594750176,3.3217,4360.8,4360.7,0.4837]
[1756594750366,3.504,4360.8,4360.7,0.4837]
[1756594757578,3.504,4360.8,4360.6,0.2032]
[1756594757579,0.2962,4360.7,4360.6,0.2032]
[1756594757782,3.2078,4360.8,4360.2,0.4182]
[1756594757783,0.1823,4360.3,4360.2,0.4182]
[1756594757983,0.2962,4360.3,4360.2,0.4182]
[1756594758185,3.2078,4360.8,4360.2,0.4182]
[1756594758485,3.2078,4360.8,4360.7,0.5001]
[1756594759987,3.504,4360.8,4360.7,0.5001]
[1756594764396,3.2078,4361.3,4360.7,0.5001]
[1756594764694,0.2985,4360.9,4360.8,0.5001]
[1756594769397,0.89820781,4360.9,4360.8,0.5001]
[1756594776398,0.89820781,4360.9,4360.8,0.2969]
[1756594776597,0.1837,4360.6,4360.5,0.4332]
[1756594776797,0.2985,4360.6,4360.5,0.2032]
[1756594777094,0.2985,4360.6,4360.5,0.7301]
[1756594777508,0.2985,4360.6,4360.5,0.5001]
[1756594777802,0.2971,4360.0,4359.9,0.504]
[1756594778098,0.2971,4360.0,4359.9,0.734]
[1756594780699,0.2971,4360.0,4359.9,0.504]
[1756594780900,0.2971,4360.0,4359.9,0.734]
[1756594784212,0.2971,4360.0,4359.9,0.504]
[1756594784406,0.2971,4360.0,4359.9,0.734]
[1756594786409,3.2078,4360.8,4359.9,0.734]
[1756594786609,0.82880905,4360.7,4360.0,0.297]
[1756594786811,0.2971,4360.5,4360.4,0.207]
[1756594787012,0.89656904,4360.5,4360.4,0.504]
[1756594788318,0.78226904,4360.5,4360.0,0.297]
[1756594788613,0.2971,4360.1,4360.0,0.504]
[1756594791716,3.2078,4360.8,4360.0,0.207]
[1756594791913,0.82856079,4360.7,4360.1,0.297]
[1756594792217,0.2971,4360.2,4360.1,0.504]
[1756594799122,0.2971,4360.2,4360.1,0.734]
[1756594799924,0.2971,4360.2,4360.1,0.504]
[1756594801220,0.2971,4360.2,4360.1,0.297]
[1756594801526,0.2971,4360.2,4360.1,0.504]
[1756594803526,0.1828,4360.2,4360.1,0.504]
[1756594803721,3.2078,4360.3,4360.1,0.504]
[1756594803928,3.2078,4360.3,4360.1,0.207]
[1756594804127,3.2078,4360.3,4360.2,0.504]
[1756594805122,3.5049,4360.3,4360.2,0.504]
[1756594805328,0.1828,4359.8,4359.7,0.437]
[1756594805627,0.1828,4359.8,4359.7,0.734]
[1756594805628,0.2971,4359.8,4359.7,0.734]
[1756594806030,0.1828,4359.8,4359.7,0.734]
[1756594806531,0.2971,4360.0,4359.9,0.207]
[1756594806832,0.2971,4360.0,4359.9,0.504]
[1756594809027,0.59931971,4360.2,4359.5,0.4371]
[1756594809326,0.1823,4359.6,4359.5,0.4371]
[1756594809626,0.2963,4359.6,4359.5,0.4371]
[1756594809824,0.2963,4359.6,4359.5,0.7398]
[1756594810726,0.2963,4359.6,4359.5,0.5098]
[1756594810927,3.3218,4359.8,4359.7,0.2071]
[1756594811131,3.92084559,4359.8,4359.7,0.5098]
[1756594811626,4.10314559,4359.8,4359.7,0.5098]
[1756594812224,3.5041,4359.8,4359.7,0.5098]
[1756594816737,3.5041,4359.8,4359.7,0.3027]
[1756594817034,4.10282883,4359.8,4359.7,0.3027]
[1756594818037,3.80652883,4359.8,4359.0,0.3027]
[1756594818236,3.80652883,4359.8,4358.9,33.035]
[1756594818237,0.2963,4359.4,4359.3,0.7398]
[1756594820443,0.2963,4359.4,4359.3,0.5098]
[1756594820642,0.2963,4359.4,4359.3,0.7398]
[1756594821133,0.2963,4359.4,4359.3,0.5098]
[1756594821340,0.2963,4359.4,4359.3,0.5327]
[1756594822438,0.2963,4359.4,4359.3,0.5098]
[1756594823144,3.3903,4359.8,4359.7,0.2071]
[1756594823442,4.10292863,4359.8,4359.7,0.5098]
[1756594823944,3.5044,4359.8,4359.7,0.5098]
[1756594826146,4.10297349,4359.8,4359.7,0.5098]
[1756594830948,0.1141,4359.7,4359.1,0.3027]
[1756594831145,0.2966,4359.2,4359.1,0.5098]
[1756594831842,3.2078,4359.8,4359.1,0.2071]
[1756594832038,0.1141,4359.6,4359.2,0.3027]
[1756594832244,0.2966,4359.6,4359.5,0.2071]
[1756594832548,0.2966,4359.6,4359.5,0.5098]
[1756594834447,0.8953888,4359.6,4359.5,0.5098]
[1756594837658,0.5987888,4359.6,4359.5,0.5098]
[1756594838759,0.5987888,4359.6,4359.5,4.5098]
[1756594838968,3.2078,4359.8,4359.5,4.2071]
[1756594839266,3.2078,4359.8,4359.7,0.1955]
[1756594839470,3.3228,4360.3,4359.7,0.1955]
[1756594839671,3.3228,4360.3,4360.2,0.4849]
[1756594839872,3.92195714,4360.3,4360.2,0.4849]
[1756594841470,4.10585714,4360.3,4360.2,0.4849]
[1756594847171,3.5067,4360.3,4360.2,0.4849]
[1756594853376,3.2078,4360.3,4360.2,0.4849]
[1756594853577,3.2078,4360.3,4360.2,4.71424]
[1756594854665,3.2078,4360.3,4360.2,4.4849]
[1756594855772,0.115,4361.1,4360.3,0.2894]
[1756594855983,3.5067,4361.3,4361.2,0.1955]
[1756594856170,3.5067,4361.3,4361.2,0.4849]
[1756594863681,3.506,4361.3,4361.2,0.4849]
[1756594864576,3.3917,4361.3,4361.2,0.4849]
[1756594865274,3.506,4361.3,4361.2,0.4849]
[1756594883778,0.1138,4361.6,4361.2,0.4849]
[1756594883979,3.2078,4362.0,4361.8,0.4972]
[1756594884184,3.3216,4362.0,4361.9,0.4972]
[1756594885287,0.1138,4362.3,4361.9,0.4972]
[1756594885488,3.2078,4362.5,4362.3,0.2033]
[1756594885489,0.1821,4362.4,4362.3,0.2033]
[1756594885793,0.8903345,4362.4,4362.3,0.4972]
[1756594886286,3.2078,4362.5,4362.3,0.2033]
[1756594886486,1.23809823,4363.6,4361.8,0.172]
[1756594886487,3.2078,4364.2,4362.6,0.2939]
[1756594886792,3.2078,4364.2,4363.1,3.705]
[1756594886793,0.4856,4363.2,4363.1,3.705]
[1756594887790,0.4856,4363.2,4363.1,3.936]
[1756594887991,3.2078,4364.2,4363.1,3.6421]
[1756594888194,0.1947,4364.1,4363.2,0.2939]
[1756594888390,0.1947,4363.4,4363.3,0.7282]
[1756594888584,0.4856,4363.4,4363.3,0.7282]
[1756594889293,0.2909,4364.1,4363.3,0.4343]
[1756594889590,0.2909,4364.1,4363.4,0.2939]
[1756594890184,0.4856,4363.5,4363.4,0.4972]
[1756594890894,0.4856,4364.1,4364.0,0.4972]
[1756594891186,0.4856,4364.6,4364.5,0.4972]
[1756594893098,0.4856,4364.6,4364.5,0.7282]
[1756594894287,3.2078,4365.2,4364.2,0.2939]
[1756594894288,0.1947,4364.3,4364.2,0.2939]
[1756594894488,0.4856,4364.3,4364.1,3.2078]
[1756594894697,0.4856,4364.3,4364.1,0.231]
[1756594895199,0.1947,4362.8,4362.7,0.4972]
[1756594895497,0.2909,4363.2,4363.1,0.2033]
[1756594895704,3.2078,4363.3,4363.1,0.7292]
[1756594895994,3.6934,4363.3,4363.2,0.4972]
[1756594896593,0.1947,4362.8,4362.7,0.4972]
[1756594896786,0.4856,4362.8,4362.7,0.7292]
[1756594897401,0.1947,4362.8,4362.7,0.7292]
[1756594897794,3.2078,4363.9,4362.7,0.4353]
[1756594897996,0.51008,4363.8,4362.8,0.2918]
[1756594898394,0.4706,4362.9,4362.8,0.4825]
[1756594899291,0.4706,4362.9,4362.8,0.7145]
[1756594900102,0.1897,4362.9,4362.8,0.7145]
[1756594900907,0.4706,4362.9,4362.8,0.4825]
[1756594901105,0.4706,4362.9,4362.8,0.7145]
[1756594903614,0.1897,4362.9,4362.6,3.4996]
[1756594903820,0.4706,4362.7,4362.6,0.2918]
[1756594904018,0.4706,4362.7,4362.6,0.7145]
[1756594905426,0.4706,4362.7,4362.6,0.4825]
[1756594905724,0.4706,4362.7,4362.6,0.7145]
[1756594906118,0.4706,4362.7,4362.6,0.4825]
[1756594906320,0.4706,4362.7,4362.6,0.7145]
[1756594909026,0.1897,4362.7,4362.6,0.7145]
[1756594909228,0.4706,4363.3,4363.2,0.1907]
[1756594909526,0.6998,4363.3,4363.2,0.4825]
[1756594909727,0.4706,4363.3,4363.2,0.4825]
[1756594918636,3.4887,4363.6,4363.2,0.4825]
[1756594918826,0.4706,4363.5,4363.4,0.1907]
[1756594919031,0.4706,4363.5,4363.4,0.4825]
[1756594921734,0.2809,4363.4,4362.7,0.2918]
[1756594921934,0.4706,4363.3,4363.2,0.231]
[1756594923032,0.4706,4363.3,4363.2,0.5228]
[1756594923333,0.4706,4363.3,4363.2,0.7135]
[1756594923537,0.4706,4363.3,4362.9,0.2918]
[1756594923738,0.1897,4363.3,4362.8,0.231]
[1756594923940,0.1897,4362.9,4362.8,0.5228]
[1756594924240,0.4706,4362.9,4362.8,0.5228]
[1756594924439,0.4706,4362.9,4362.8,0.2918]
[1756594926041,0.4706,4362.9,4362.8,0.4825]
[1756594934849,0.2834,4363.5,4362.9,0.3065]
[1756594935050,1.07263552,4363.4,4363.3,0.5068]
[1756594935245,1.30182552,4363.4,4363.3,0.5068]
[1756594935753,1.07263552,4363.4,4363.3,0.5068]
[1756594943048,0.59433552,4363.4,4363.3,0.5068]
[1756594943255,3.2078,4363.6,4363.5,0.2003]
[1756594943448,3.2078,4363.6,4363.5,0.5068]
[1756594949952,3.4912,4363.6,4363.5,0.5068]
[1756594950354,3.6861,4363.6,4363.5,0.5068]
[1756594952456,3.6861,4363.6,4363.5,0.3065]
[1756594953054,3.4027,4363.6,4362.6,3.2078]
[1756594953353,0.4783,4362.8,4362.7,0.7378]
[1756594954459,0.4783,4362.8,4362.7,0.5068]
[1756594954655,0.4783,4362.8,4362.7,0.231]
[1756594955557,0.4783,4362.8,4362.7,0.5375]
[1756594955852,0.4783,4362.8,4362.7,0.7378]
[1756594961666,0.4783,4362.8,4362.7,0.231]
[1756594962166,0.4783,4362.8,4362.7,0.7108]
[1756594964473,3.2078,4363.6,4362.7,0.7108]
[1756594964474,0.2917,4363.5,4362.7,0.424]
[1756594964772,0.4852,4363.5,4363.4,0.4798]
[1756594965471,0.4852,4363.5,4363.2,0.2868]
[1756594966173,0.4852,4363.5,4363.1,0.231]
[1756594966371,0.4852,4363.5,4363.2,0.2868]
[1756594966773,0.4852,4363.5,4363.1,0.231]
[1756594967067,0.4852,4363.5,4363.4,0.4798]
[1756594967274,3.2078,4363.6,4363.4,0.193]
[1756594967473,3.4013,4363.6,4363.5,0.7108]
[1756594967672,3.693,4363.6,4363.5,0.7108]
[1756594969079,3.2078,4363.6,4363.5,0.7108]
[1756594969277,33.19897379,4365.3,4364.0,0.4798]
[1756594969278,3.693,4364.1,4364.0,0.4798]
[1756594969477,3.693,4364.1,4364.0,0.6918]
[1756594971271,3.2078,4364.6,4364.5,0.4798]
[1756594971476,0.4852,4364.7,4364.6,0.4798]
[1756594972169,0.2917,4365.0,4364.6,0.4798]
[1756594972376,0.1935,4365.0,4364.9,0.193]
[1756594972678,0.4852,4365.0,4364.9,0.4798]
[1756594975477,3.2078,4365.1,4365.0,0.4798]
[1756594975875,3.693,4365.1,4365.0,0.4798]
[1756594977178,3.4013,4365.1,4365.0,0.4798]
[1756594977882,0.1935,4365.1,4365.0,0.4798]
[1756594980179,0.1935,4365.1,4365.0,0.7108]
[1756594980679,0.4852,4365.1,4365.0,0.7108]
[1756594980982,0.2917,4365.6,4365.1,0.2868]
[1756594981179,0.4852,4365.6,4365.0,0.231]
[1756594981373,0.4852,4365.6,4365.1,0.2868]
[1756594982578,0.4852,4365.6,4365.5,0.193]
[1756594982777,0.4852,4365.6,4365.5,0.4798]
[1756594983178,0.4852,4365.6,4365.5,0.7108]
[1756594984385,0.4852,4365.6,4365.5,0.231]
[1756594988790,0.4852,4365.6,4365.5,0.5248]
[1756594990689,0.5126,4365.4,4365.3,0.5248]
[1756594991489,0.5126,4365.4,4365.3,0.7236]
[1756594991992,0.204,4364.9,4364.8,3.2078]
[1756594992187,0.3086,4364.4,4363.7,0.2938]
[1756594992386,0.5126,4363.9,4363.8,0.7236]
[1756594993490,0.204,4363.9,4363.8,0.7236]
[1756594993884,0.5126,4363.9,4363.8,0.7236]
[1756594997991,3.2078,4364.6,4363.8,0.7236]
[1756594998190,0.5126,4364.5,4364.4,0.1988]
[1756594998391,3.2078,4364.6,4364.4,0.4298]
[1756594998590,3.2078,4364.6,4364.5,0.2938]
[1756594998791,3.2078,4364.6,4364.5,0.4926]
[1756594999695,3.7204,4364.6,4364.5,0.4926]
[1756595002996,3.5164,4365.1,4364.5,0.1988]
[1756595003297,3.2078,4365.1,4365.0,0.4926]
[1756595003490,3.2078,4365.1,4365.0,0.7236]
[1756595005297,3.7204,4365.1,4365.0,0.7236]
[1756595005502,0.3086,4365.0,4364.2,0.2938]
[1756595005802,0.5126,4364.5,4364.4,0.4926]
[1756595006000,0.204,4364.5,4364.4,0.4926]
[1756595006302,0.3086,4365.0,4364.5,0.2938]
[1756595006498,0.5126,4365.0,4364.9,0.1988]
[1756595006796,0.5126,4365.0,4364.9,0.7236]
[1756595018702,0.204,4365.0,4364.9,0.7236]
[1756595019406,0.69270982,4367.6,4366.0,3.2078]
[1756595019602,3.2078,4368.7,4367.5,3.2078]
[1756595019803,0.195,4368.2,4368.1,3.2078]
[1756595020108,0.195,4368.2,4368.1,3.4408]
[1756595020299,0.195,4368.2,4368.1,3.6386]
[1756595020709,0.195,4368.2,4368.1,3.9238]
[1756595021504,4.195,4368.2,4367.6,3.2078]
[1756595021708,0.2916,4368.0,4367.7,0.716]
[1756595021900,0.28452927,4370.2,4367.0,0.2852]
[1756595021901,0.2916,4367.7,4367.0,0.2852]
[1756595022099,0.195,4367.2,4367.1,0.233]
[1756595022304,0.4866,4367.2,4367.1,0.233]
[1756595022503,0.4866,4367.2,4367.1,0.716]
[1756595022705,0.2916,4368.8,4367.2,0.2852]
[1756595022905,3.2078,4368.9,4367.2,3.2078]
[1756595023108,0.52054,4368.8,4367.3,0.2852]
[1756595023300,0.2916,4367.3,4367.2,3.2078]
[1756595023504,0.4866,4367.3,4367.2,3.4418]
[1756595023704,0.4866,4367.3,4367.2,3.6396]
[1756595023904,0.4866,4367.3,4367.2,3.9248]
[1756595026007,0.4866,4367.3,4367.2,3.6908]
[1756595026212,0.4866,4367.3,4367.2,3.2078]
[1756595026413,0.4866,4367.3,4367.2,3.4418]
[1756595027003,0.4866,4367.3,4367.2,3.6396]
[1756595027208,0.4866,4367.3,4367.2,3.9248]
[1756595031911,4.195,4367.3,4366.6,3.2078]
[1756595032118,0.195,4366.7,4366.6,3.2078]
[1756595032414,0.4866,4366.7,4366.6,3.4408]
[1756595032919,0.4866,4366.7,4366.6,3.9238]
[1756595035811,0.4866,4366.7,4366.6,3.2078]
[1756595036016,0.4866,4366.7,4366.6,3.4408]
[1756595036717,0.4866,4366.7,4366.6,0.233]
[1756595039213,0.4866,4366.1,4366.0,3.2078]
[1756595039419,0.4866,4366.1,4366.0,3.9238]
[1756595040416,3.2078,4367.1,4366.1,0.2852]
[1756595040417,0.2916,4366.9,4366.1,0.2852]
[1756595040612,0.2916,4366.1,4366.0,3.2078]
[1756595040817,0.4866,4366.1,4366.0,3.4408]
[1756595041519,0.4866,4366.1,4366.0,0.233]
[1756595041714,0.4866,4365.6,4365.5,3.6908]
[1756595041914,0.4866,4365.6,4365.5,3.9238]
[1756595042318,3.2078,4366.6,4365.5,3.9238]
[1756595042508,3.2078,4366.6,4365.6,0.2852]
[1756595042713,0.195,4365.9,4365.8,0.483]
[1756595042913,0.4866,4365.9,4365.8,0.716]
[1756595043114,0.4866,4366.5,4366.4,0.1978]
[1756595043314,0.4866,4366.5,4366.1,0.2852]
[1756595043515,0.195,4366.3,4366.2,0.233]
[1756595043725,0.4866,4366.3,4366.2,0.233]
[1756595044117,0.4866,4366.3,4366.2,0.716]
[1756595047416,0.4866,4366.3,4366.2,0.4308]
[1756595047818,0.4866,4366.3,4366.2,0.1978]
[1756595048018,0.4866,4366.3,4365.9,0.5371]
[1756595048218,0.4993,4366.0,4365.9,0.7378]
[1756595051718,0.4993,4366.0,4365.9,0.2007]
[1756595051920,0.4993,4366.0,4365.9,0.5048]
[1756595052128,3.2078,4366.6,4366.4,0.5048]
[1756595052321,3.2078,4366.6,4366.5,0.5048]
[1756595053521,0.3056,4366.9,4366.6,0.3041]
[1756595053722,0.4993,4366.9,4366.8,0.5048]
[1756595054427,0.1937,4366.9,4366.8,0.5048]
[1756595055424,0.4993,4366.9,4366.8,0.5048]
[1756595057730,3.2078,4367.1,4366.8,0.5048]
[1756595057930,0.4993,4367.5,4367.4,0.2007]
[1756595058131,0.4993,4367.5,4367.4,0.5048]
[1756595059418,0.1937,4367.5,4367.1,1.75838501]
[1756595059730,0.4993,4367.2,4367.1,1.75838501]
[1756595059931,0.4993,4367.2,4367.1,1.95908501]
[1756595060921,0.3056,4367.5,4367.1,1.72608501]
[1756595061126,0.4993,4367.5,4367.4,0.5048]
[1756595061930,3.2078,4367.6,4367.5,0.5048]
[1756595062731,3.2078,4367.6,4367.5,1.72608501]
[1756595063928,0.1937,4367.7,4367.6,0.3041]
[1756595064130,0.4993,4367.7,4367.6,0.5048]
[1756595065034,0.3056,4368.0,4367.7,0.3041]
[1756595065224,0.4993,4368.0,4367.9,0.5048]
[1756595065429,0.4993,4368.0,4367.6,0.3041]
[1756595065634,0.1937,4367.7,4367.6,0.3041]
[1756595065836,0.4993,4367.6,4367.5,1.22128501]
[1756595066037,0.4993,4367.6,4367.5,0.233]
[1756595066237,0.4993,4367.5,4367.4,1.22128501]
[1756595066426,0.1937,4367.3,4367.2,1.65498501]
[1756595066626,0.4993,4367.3,4367.2,1.65498501]
[1756595067032,0.4993,4367.3,4367.2,1.95908501]
[1756595068349,3.2078,4368.1,4367.3,0.3041]
[1756595068350,0.3056,4368.0,4367.3,0.3041]
[1756595068545,0.4993,4368.0,4367.9,0.5048]
[1756595069142,0.3056,4367.9,4367.3,0.3041]
[1756595070042,0.4993,4367.4,4367.3,0.5048]
[1756595070642,0.3056,4368.0,4367.4,0.3041]
[1756595072243,0.3056,4368.0,4367.5,0.3041]
[1756595072448,0.4993,4367.6,4367.5,0.5048]
[1756595073841,0.4993,4367.6,4367.5,0.2007]
[1756595074036,0.4993,4367.6,4367.4,0.233]
[1756595074548,0.4993,4367.6,4367.5,0.5048]
[1756595077046,0.4993,4367.6,4367.5,1.72608501]
[1756595077853,3.4029,4368.1,4368.0,0.1918]
[1756595078054,3.4029,4368.1,4368.0,0.485]
[1756595078558,3.7056,4368.1,4368.0,0.485]
[1756595078950,0.1951,4367.6,4367.5,1.70628501]
[1756595079146,0.4978,4367.6,4367.5,1.70628501]
[1756595079553,0.4978,4367.6,4367.5,0.485]
[1756595081469,0.1951,4367.6,4367.5,0.485]
[1756595082455,0.232,4368.6,4367.5,0.1918]
[1756595082660,0.4978,4367.9,4367.8,1.70854047]
[1756595082864,0.4978,4367.9,4367.8,0.717]
[1756595090367,0.4978,4367.8,4367.7,3.6928]
[1756595090564,0.4978,4367.8,4367.7,3.9248]
[1756595095965,0.4978,4367.8,4367.7,3.6928]
[1756595096171,0.4978,4367.8,4367.7,3.9248]
[1756595098071,0.4978,4367.7,4367.6,0.232]
[1756595098469,0.4978,4367.6,4367.5,0.2932]
[1756595098669,0.4978,4367.5,4367.4,0.232]
[1756595099774,0.4978,4367.5,4367.4,0.5252]
[1756595099976,0.3027,4367.4,4367.3,0.232]
[1756595100171,0.3027,4367.4,4367.2,3.2078]
[1756595100172,0.4978,4367.3,4367.2,3.2078]
[1756595100477,0.1951,4367.3,4367.2,1.22728811]
[1756595100969,0.4978,4367.3,4367.2,1.22728811]
[1756595101569,0.1951,4367.3,4367.1,1.22728811]
[1756595101872,0.1951,4367.2,4367.0,1.22728811]
[1756595102069,0.4978,4367.1,4367.0,1.22728811]
[1756595102476,0.4978,4367.0,4366.9,1.22728811]
[1756595102679,3.7056,4367.0,4366.9,1.22728811]
[1756595102970,0.3027,4366.9,4366.7,1.22728811]
[1756595103166,0.4978,4366.8,4366.7,1.22728811]
[1756595103668,0.1951,4366.5,4366.4,1.22728811]
[1756595103869,0.4978,4366.5,4366.3,1.22728811]
[1756595104076,0.4978,4366.5,4366.1,0.2932]
[1756595104077,0.4978,4366.3,4366.1,1.52048811]
[1756595104272,0.4978,4366.2,4366.1,0.2932]
[1756595104665,0.1951,4366.0,4365.9,1.52048811]
[1756595104871,0.4978,4366.0,4365.6,1.75248811]
[1756595105073,0.4978,4365.8,4365.7,0.485]
[1756595105879,0.4978,4365.5,4365.4,0.1918]
[1756595106477,0.4978,4365.3,4365.2,0.717]
[1756595107176,0.4978,4365.3,4365.2,0.2932]
[1756595107377,0.1885,4364.9,4364.8,0.232]
[1756595107680,0.4935,4364.9,4364.8,0.4329]
[1756595107879,0.4935,4364.9,4364.8,0.7338]
[1756595108075,0.4935,4364.9,4364.8,0.5018]
[1756595108276,0.1885,4364.6,4364.5,0.5018]
[1756595108482,0.4935,4364.6,4364.5,0.5018]
[1756595109574,0.4935,4364.6,4364.5,0.2009]
[1756595110082,0.4935,4364.6,4364.5,0.5018]
[1756595110775,0.1885,4364.1,4364.0,3.4087]
[1756595111175,0.4935,4364.1,4364.0,3.4087]
[1756595111373,0.4935,4364.1,4364.0,3.7096]
[1756595112084,3.2078,4364.9,4364.8,0.2009]
[1756595112378,3.2078,4364.9,4364.8,0.5018]
[1756595112778,3.5128,4364.9,4364.8,0.5018]
[1756595113484,3.2078,4364.9,4364.8,0.5018]
[1756595113682,3.2078,4365.4,4364.9,0.3009]
[1756595113876,3.2078,4365.4,4364.8,0.232]
[1756595113877,3.3963,4365.4,4365.3,0.5018]
[1756595114183,3.7013,4365.4,4365.3,0.5018]
[1756595114991,3.7013,4365.4,4364.9,0.3009]
[1756595115182,3.7013,4365.4,4364.7,0.232]
[1756595115383,3.7013,4365.4,4364.8,0.3009]
[1756595117180,3.7013,4365.4,4365.3,0.5018]
[1756595117384,3.3963,4365.4,4365.3,0.5018]
[1756595117778,3.7013,4365.4,4365.3,0.5018]
[1756595119786,0.4935,4365.4,4365.3,0.5018]
[1756595127290,3.5128,4365.9,4365.8,0.5018]
[1756595127491,3.7013,4365.9,4365.8,0.5018]
[1756595129891,3.7013,4365.9,4365.8,0.2009]
[1756595130086,3.7013,4365.9,4365.5,0.3009]
[1756595130294,0.305,4365.8,4365.1,0.3009]
[1756595130482,0.1885,4365.3,4365.2,0.5018]
[1756595130687,0.4935,4365.3,4365.0,3.2078]
[1756595130991,0.4935,4365.1,4365.0,0.5018]
[1756595131587,0.4935,4365.1,4365.0,1.72908811]
[1756595132491,0.4935,4365.8,4365.7,0.2009]
[1756595132684,0.4935,4365.8,4365.7,0.5018]
[1756595133082,0.4935,4365.8,4365.7,0.2009]
[1756595134586,0.4935,4365.8,4365.7,0.5018]
[1756595135788,1.40929734,4367.0,4366.9,0.2009]
[1756595135789,1.22814568,4367.0,4366.9,0.2009]
[1756595136091,3.2078,4367.7,4367.0,0.3009]
[1756595136286,3.7013,4367.7,4367.6,0.3009]
[1756595136484,0.1885,4367.4,4367.3,1.22398876]
[1756595136684,0.4935,4367.3,4367.2,1.22398876]
[1756595136893,0.4935,4367.3,4367.2,1.42488876]
[1756595137093,0.4935,4367.3,4367.2,1.72578876]
[1756595137395,0.4935,4367.3,4367.2,0.5018]
[1756595139284,0.4935,4367.3,4366.9,4.43178876]
[1756595139498,0.506,4367.0,4366.9,3.7091]
[1756595140298,0.3055,4367.6,4367.0,0.3074]
[1756595140486,0.506,4367.6,4367.5,0.1939]
[1756595140688,0.506,4367.6,4367.5,0.5013]
[1756595141092,0.506,4367.6,4367.5,0.1939]
[1756595141496,0.2005,4367.6,4367.0,0.3074]